Workbook

Sheet Portfolio
D4: Portfolio Value: | E4: =SUMPRODUCT(Portfolio[Quantity],Portfolio[Price]) -> 30824.9
E5: =SUMPRODUCT(Portfolio[Quantity],Portfolio[Change]) -> -496.64 | F5: =IF((E4-E5) = 0, 0,E5/(E4-E5)) -> -0.01585618076
B25: Source: Yahoo Finance. Quotes delayed.
B26: Symbol | C26: Quantity | D26: Price | E26: Change | F26: % Change | G26: P&L | H26: Total Value
B27: GOOG | C27: 12 | D27: =StockQuote(Portfolio[[#This Row],[Symbol]]) -> 695.85 | E27: =StockChange(Portfolio[[#This Row],[Symbol]]) -> -10.61 | F27: =IF(Portfolio[[#This Row],[Price]]=0,0,Portfolio[[#This Row],[Change]]/(Portfolio[[#This Row],[Price]]-Portfolio[[#This Row],[Change]])) -> -0.01501854316 | G27: =Portfolio[[#This Row],[Change]]*Portfolio[[#This Row],[Quantity]] -> -127.32 | H27: =Portfolio[[#This Row],[Price]]*Portfolio[[#This Row],[Quantity]] -> 8350.2
B28: AMZN | C28: 15 | D28: =StockQuote(Portfolio[[#This Row],[Symbol]]) -> 552.94 | E28: =StockChange(Portfolio[[#This Row],[Symbol]]) -> -6.56 | F28: =IF(Portfolio[[#This Row],[Price]]=0,0,Portfolio[[#This Row],[Change]]/(Portfolio[[#This Row],[Price]]-Portfolio[[#This Row],[Change]])) -> -0.01172475424 | G28: =Portfolio[[#This Row],[Change]]*Portfolio[[#This Row],[Quantity]] -> -98.4 | H28: =Portfolio[[#This Row],[Price]]*Portfolio[[#This Row],[Quantity]] -> 8294.1
B29: AAPL | C29: 10 | D29: =StockQuote(Portfolio[[#This Row],[Symbol]]) -> 94.69 | E29: =StockChange(Portfolio[[#This Row],[Symbol]]) -> -2.19 | F29: =IF(Portfolio[[#This Row],[Price]]=0,0,Portfolio[[#This Row],[Change]]/(Portfolio[[#This Row],[Price]]-Portfolio[[#This Row],[Change]])) -> -0.02260528489 | G29: =Portfolio[[#This Row],[Change]]*Portfolio[[#This Row],[Quantity]] -> -21.9 | H29: =Portfolio[[#This Row],[Price]]*Portfolio[[#This Row],[Quantity]] -> 946.9
B30: JPM | C30: 50 | D30: =StockQuote(Portfolio[[#This Row],[Symbol]]) -> 56.12 | E30: =StockChange(Portfolio[[#This Row],[Symbol]]) -> -2.45 | F30: =IF(Portfolio[[#This Row],[Price]]=0,0,Portfolio[[#This Row],[Change]]/(Portfolio[[#This Row],[Price]]-Portfolio[[#This Row],[Change]])) -> -0.04183028854 | G30: =Portfolio[[#This Row],[Change]]*Portfolio[[#This Row],[Quantity]] -> -122.5 | H30: =Portfolio[[#This Row],[Price]]*Portfolio[[#This Row],[Quantity]] -> 2806
B31: WMT | C31: 30 | D31: =StockQuote(Portfolio[[#This Row],[Symbol]]) -> 66.48 | E31: =StockChange(Portfolio[[#This Row],[Symbol]]) -> 0.85 | F31: =IF(Portfolio[[#This Row],[Price]]=0,0,Portfolio[[#This Row],[Change]]/(Portfolio[[#This Row],[Price]]-Portfolio[[#This Row],[Change]])) -> 0.01295139418 | G31: =Portfolio[[#This Row],[Change]]*Portfolio[[#This Row],[Quantity]] -> 25.5 | H31: =Portfolio[[#This Row],[Price]]*Portfolio[[#This Row],[Quantity]] -> 1994.4
B32: PFE | C32: 30 | D32: =StockQuote(Portfolio[[#This Row],[Symbol]]) -> 29.96 | E32: =StockChange(Portfolio[[#This Row],[Symbol]]) -> -0.09 | F32: =IF(Portfolio[[#This Row],[Price]]=0,0,Portfolio[[#This Row],[Change]]/(Portfolio[[#This Row],[Price]]-Portfolio[[#This Row],[Change]])) -> -0.002995008319 | G32: =Portfolio[[#This Row],[Change]]*Portfolio[[#This Row],[Quantity]] -> -2.7 | H32: =Portfolio[[#This Row],[Price]]*Portfolio[[#This Row],[Quantity]] -> 898.8
B33: WFC | C33: 50 | D33: =StockQuote(Portfolio[[#This Row],[Symbol]]) -> 48.1 | E33: =StockChange(Portfolio[[#This Row],[Symbol]]) -> -1.09 | F33: =IF(Portfolio[[#This Row],[Price]]=0,0,Portfolio[[#This Row],[Change]]/(Portfolio[[#This Row],[Price]]-Portfolio[[#This Row],[Change]])) -> -0.0221589754 | G33: =Portfolio[[#This Row],[Change]]*Portfolio[[#This Row],[Quantity]] -> -54.5 | H33: =Portfolio[[#This Row],[Price]]*Portfolio[[#This Row],[Quantity]] -> 2405
B34: MSFT | C34: 30 | D34: =StockQuote(Portfolio[[#This Row],[Symbol]]) -> 51.18 | E34: =StockChange(Portfolio[[#This Row],[Symbol]]) -> -1.47 | F34: =IF(Portfolio[[#This Row],[Price]]=0,0,Portfolio[[#This Row],[Change]]/(Portfolio[[#This Row],[Price]]-Portfolio[[#This Row],[Change]])) -> -0.02792022792 | G34: =Portfolio[[#This Row],[Change]]*Portfolio[[#This Row],[Quantity]] -> -44.1 | H34: =Portfolio[[#This Row],[Price]]*Portfolio[[#This Row],[Quantity]] -> 1535.4
B35: FB | C35: 30 | D35: =StockQuote(Portfolio[[#This Row],[Symbol]]) -> 105.46 | E35: =StockChange(Portfolio[[#This Row],[Symbol]]) -> -1.7 | F35: =IF(Portfolio[[#This Row],[Price]]=0,0,Portfolio[[#This Row],[Change]]/(Portfolio[[#This Row],[Price]]-Portfolio[[#This Row],[Change]])) -> -0.01586412841 | G35: =Portfolio[[#This Row],[Change]]*Portfolio[[#This Row],[Quantity]] -> -51 | H35: =Portfolio[[#This Row],[Price]]*Portfolio[[#This Row],[Quantity]] -> 3163.8
B36: LMT | C36: 2 | D36: =StockQuote(Portfolio[[#This Row],[Symbol]]) -> 215.15 | E36: =StockChange(Portfolio[[#This Row],[Symbol]]) -> 0.14 | F36: =IF(Portfolio[[#This Row],[Price]]=0,0,Portfolio[[#This Row],[Change]]/(Portfolio[[#This Row],[Price]]-Portfolio[[#This Row],[Change]])) -> 0.0006511325055 | G36: =Portfolio[[#This Row],[Change]]*Portfolio[[#This Row],[Quantity]] -> 0.28 | H36: =Portfolio[[#This Row],[Price]]*Portfolio[[#This Row],[Quantity]] -> 430.3
B37: Total | G37: =SUBTOTAL(109,Portfolio[P&L]) -> -496.64 | H37: =SUBTOTAL(109,Portfolio[Total Value]) -> 30824.9

Sheet Example
D4: Examples of All Available Stock Functions
B8: Source: Yahoo Finance. Quotes delayed.
B9: Symbol | C9: Name | D9: Quote | E9: Open | F9: Previous Close | G9: Bid | H9: Ask | I9: Change | J9: Change in % | K9: Day's Low | L9: Day's High | M9: Volume | N9: Year Low | O9: Year High | P9: PE Ratio | Q9: EPS | R9: Market Cap | S9: Div. Yield | T9: Div. Share | U9: EBITDA | W9: Available Functions
B10: ABT | C10: =StockName(Table3[[#This Row],[Symbol]]) -> Abbott Laboratories Common Stoc | D10: =StockQuote(B10) -> 38.39 | E10: =StockOpen(Table3[[#This Row],[Symbol]]) -> 38.91 | F10: =StockPreviousClose(Table3[[#This Row],[Symbol]]) -> 39.16 | G10: =StockBid(Table3[[#This Row],[Symbol]]) -> 0 | H10: =StockAsk(Table3[[#This Row],[Symbol]]) -> 0 | I10: =StockChange(B10) -> -0.77 | J10: =StockChangeInPercent(Table3[[#This Row],[Symbol]]) -> -1.97% | K10: =StockDaysLow(B10) -> 38.3 | L10: =StockDaysHigh(B10) -> 39.05 | M10: =VALUE(StockVolume(B10)) -> 6144311 | N10: =StockYearLow(B10) -> 36 | O10: =StockYearHigh(B10) -> 51.74 | P10: =StockPERatio(Table3[[#This Row],[Symbol]]) -> 13.12 | Q10: =StockEPS(Table3[[#This Row],[Symbol]]) -> 2.93 | R10: =StockMarketCapitalization(Table3[[#This Row],[Symbol]]) -> 57.27B | S10: =StockDividendYield(Table3[[#This Row],[Symbol]]) -> 2.7 | T10: =StockDividendPerShare(Table3[[#This Row],[Symbol]]) -> 1.04 | U10: =StockEBITDA(Table3[[#This Row],[Symbol]]) -> 4.81B | W10: Function | X10: Description
B11: ALL | C11: =StockName(Table3[[#This Row],[Symbol]]) -> Allstate Corporation (The) Comm | D11: 63.73 | E11: =StockOpen(Table3[[#This Row],[Symbol]]) -> 64.31 | F11: =StockPreviousClose(Table3[[#This Row],[Symbol]]) -> 64.44 | G11: =StockBid(Table3[[#This Row],[Symbol]]) -> 0 | H11: =StockAsk(Table3[[#This Row],[Symbol]]) -> 0 | I11: -0.71 | J11: =StockChangeInPercent(Table3[[#This Row],[Symbol]]) -> -1.10% | K11: 63.56 | L11: 64.31 | M11: 1973511 | N11: 54.12 | O11: 72.51 | P11: =StockPERatio(Table3[[#This Row],[Symbol]]) -> 12.62 | Q11: =StockEPS(Table3[[#This Row],[Symbol]]) -> 5.05 | R11: =StockMarketCapitalization(Table3[[#This Row],[Symbol]]) -> 24.28B | S11: =StockDividendYield(Table3[[#This Row],[Symbol]]) -> 2.06 | T11: =StockDividendPerShare(Table3[[#This Row],[Symbol]]) -> 1.32 | U11: =StockEBITDA(Table3[[#This Row],[Symbol]]) -> 3.98B | W11: =StockAsk(symbol) | X11: Returns the ask price.
B12: AMZN | C12: =StockName(Table3[[#This Row],[Symbol]]) -> Amazon.com, Inc. | D12: 552.94 | E12: =StockOpen(Table3[[#This Row],[Symbol]]) -> 555.65 | F12: =StockPreviousClose(Table3[[#This Row],[Symbol]]) -> 559.5 | G12: =StockBid(Table3[[#This Row],[Symbol]]) -> 0 | H12: =StockAsk(Table3[[#This Row],[Symbol]]) -> 0 | I12: -6.56 | J12: =StockChangeInPercent(Table3[[#This Row],[Symbol]]) -> -1.17% | K12: 545.33 | L12: 556.91 | M12: 4050939 | N12: 365.65 | O12: 696.44 | P12: =StockPERatio(Table3[[#This Row],[Symbol]]) -> 442.35 | Q12: =StockEPS(Table3[[#This Row],[Symbol]]) -> 1.25 | R12: =StockMarketCapitalization(Table3[[#This Row],[Symbol]]) -> 260.35B | S12: =StockDividendYield(Table3[[#This Row],[Symbol]]) -> 0 | T12: =StockDividendPerShare(Table3[[#This Row],[Symbol]]) -> 0 | U12: =StockEBITDA(Table3[[#This Row],[Symbol]]) -> 7.88B | W12: =StockBid(symbol) | X12: Returns the bid price.
B13: BA | C13: =StockName(Table3[[#This Row],[Symbol]]) -> Boeing Company (The) Common Sto | D13: 116.9 | E13: =StockOpen(Table3[[#This Row],[Symbol]]) -> 116.97 | F13: =StockPreviousClose(Table3[[#This Row],[Symbol]]) -> 117.39 | G13: =StockBid(Table3[[#This Row],[Symbol]]) -> 0 | H13: =StockAsk(Table3[[#This Row],[Symbol]]) -> 0 | I13: -0.49 | J13: =StockChangeInPercent(Table3[[#This Row],[Symbol]]) -> -0.42% | K13: 115.93 | L13: 118.5 | M13: 3762341 | N13: 102.1 | O13: 156.91 | P13: =StockPERatio(Table3[[#This Row],[Symbol]]) -> 15.71 | Q13: =StockEPS(Table3[[#This Row],[Symbol]]) -> 7.44 | R13: =StockMarketCapitalization(Table3[[#This Row],[Symbol]]) -> 77.45B | S13: =StockDividendYield(Table3[[#This Row],[Symbol]]) -> 3.79 | T13: =StockDividendPerShare(Table3[[#This Row],[Symbol]]) -> 4.36 | U13: =StockEBITDA(Table3[[#This Row],[Symbol]]) -> 9.00B | W13: =StockChange(symbol) | X13: Returns the change in stock price since last closed.
B14: CCE | C14: =StockName(Table3[[#This Row],[Symbol]]) -> Coca-Cola Enterprises, Inc. Com | D14: 49.03 | E14: =StockOpen(Table3[[#This Row],[Symbol]]) -> 49.17 | F14: =StockPreviousClose(Table3[[#This Row],[Symbol]]) -> 49.38 | G14: =StockBid(Table3[[#This Row],[Symbol]]) -> 0 | H14: =StockAsk(Table3[[#This Row],[Symbol]]) -> 0 | I14: -0.35 | J14: =StockChangeInPercent(Table3[[#This Row],[Symbol]]) -> -0.71% | K14: 48.86 | L14: 49.53 | M14: 1117294 | N14: 41.03 | O14: 53.79 | P14: =StockPERatio(Table3[[#This Row],[Symbol]]) -> 19.3 | Q14: =StockEPS(Table3[[#This Row],[Symbol]]) -> 2.54 | R14: =StockMarketCapitalization(Table3[[#This Row],[Symbol]]) -> 11.15B | S14: =StockDividendYield(Table3[[#This Row],[Symbol]]) -> 2.45 | T14: =StockDividendPerShare(Table3[[#This Row],[Symbol]]) -> 1.2 | U14: =StockEBITDA(Table3[[#This Row],[Symbol]]) -> 1.20B | W14: =StockChangeInPercent(symbol) | X14: Returns the change in stock price as a percent.
B15: DAL | C15: =StockName(Table3[[#This Row],[Symbol]]) -> Delta Air Lines, Inc. Common St | D15: 48.95 | E15: =StockOpen(Table3[[#This Row],[Symbol]]) -> 48.47 | F15: =StockPreviousClose(Table3[[#This Row],[Symbol]]) -> 48.82 | G15: =StockBid(Table3[[#This Row],[Symbol]]) -> 0 | H15: =StockAsk(Table3[[#This Row],[Symbol]]) -> 0 | I15: 0.13 | J15: =StockChangeInPercent(Table3[[#This Row],[Symbol]]) -> +0.27% | K15: 48.45 | L15: 49.45 | M15: 9411450 | N15: 34.61 | O15: 52.77 | P15: =StockPERatio(Table3[[#This Row],[Symbol]]) -> 8.69 | Q15: =StockEPS(Table3[[#This Row],[Symbol]]) -> 5.63 | R15: =StockMarketCapitalization(Table3[[#This Row],[Symbol]]) -> 38.00B | S15: =StockDividendYield(Table3[[#This Row],[Symbol]]) -> 1.16 | T15: =StockDividendPerShare(Table3[[#This Row],[Symbol]]) -> 0.54 | U15: =StockEBITDA(Table3[[#This Row],[Symbol]]) -> 8.22B | W15: =StockDaysHigh(symbol) | X15: Returns the highest trade price for the day.
B16: FB | C16: =StockName(Table3[[#This Row],[Symbol]]) -> Facebook, Inc. | D16: 105.46 | E16: =StockOpen(Table3[[#This Row],[Symbol]]) -> 106.86 | F16: =StockPreviousClose(Table3[[#This Row],[Symbol]]) -> 107.16 | G16: =StockBid(Table3[[#This Row],[Symbol]]) -> 0 | H16: =StockAsk(Table3[[#This Row],[Symbol]]) -> 0 | I16: -1.7 | J16: =StockChangeInPercent(Table3[[#This Row],[Symbol]]) -> -1.59% | K16: 105.12 | L16: 107.47 | M16: 25321690 | N16: 72 | O16: 117.59 | P16: =StockPERatio(Table3[[#This Row],[Symbol]]) -> 81.56 | Q16: =StockEPS(Table3[[#This Row],[Symbol]]) -> 1.29 | R16: =StockMarketCapitalization(Table3[[#This Row],[Symbol]]) -> 300.17B | S16: =StockDividendYield(Table3[[#This Row],[Symbol]]) -> 0 | T16: =StockDividendPerShare(Table3[[#This Row],[Symbol]]) -> 0 | U16: =StockEBITDA(Table3[[#This Row],[Symbol]]) -> 8.24B | W16: =StockDaysLow(symbol) | X16: Returns the lowest trade price for the day.
B17: GOOG | C17: =StockName(Table3[[#This Row],[Symbol]]) -> Alphabet Inc. | D17: 695.85 | E17: =StockOpen(Table3[[#This Row],[Symbol]]) -> 701.45 | F17: =StockPreviousClose(Table3[[#This Row],[Symbol]]) -> 706.46 | G17: =StockBid(Table3[[#This Row],[Symbol]]) -> 0 | H17: =StockAsk(Table3[[#This Row],[Symbol]]) -> 0 | I17: -10.61 | J17: =StockChangeInPercent(Table3[[#This Row],[Symbol]]) -> -1.50% | K17: 693.58 | L17: 708.4 | M17: 2009295 | N17: 515.18 | O17: 789.87 | P17: =StockPERatio(Table3[[#This Row],[Symbol]]) -> 29.49 | Q17: =StockEPS(Table3[[#This Row],[Symbol]]) -> 23.59 | R17: =StockMarketCapitalization(Table3[[#This Row],[Symbol]]) -> 478.97B | S17: =StockDividendYield(Table3[[#This Row],[Symbol]]) -> 0 | T17: =StockDividendPerShare(Table3[[#This Row],[Symbol]]) -> 0 | U17: =StockEBITDA(Table3[[#This Row],[Symbol]]) -> 24.42B | W17: =StockDividendPerShare(symbol) | X17: Returns the dividend per share.
B18: IBM | C18: =StockName(Table3[[#This Row],[Symbol]]) -> International Business Machines | D18: 132.4 | E18: =StockOpen(Table3[[#This Row],[Symbol]]) -> 133.14 | F18: =StockPreviousClose(Table3[[#This Row],[Symbol]]) -> 133.77 | G18: =StockBid(Table3[[#This Row],[Symbol]]) -> 0 | H18: =StockAsk(Table3[[#This Row],[Symbol]]) -> 0 | I18: -1.37 | J18: =StockChangeInPercent(Table3[[#This Row],[Symbol]]) -> -1.02% | K18: 132.01 | L18: 133.41 | M18: 3439831 | N18: 116.9 | O18: 176.3 | P18: =StockPERatio(Table3[[#This Row],[Symbol]]) -> 9.86 | Q18: =StockEPS(Table3[[#This Row],[Symbol]]) -> 13.42 | R18: =StockMarketCapitalization(Table3[[#This Row],[Symbol]]) -> 127.90B | S18: =StockDividendYield(Table3[[#This Row],[Symbol]]) -> 3.91 | T18: =StockDividendPerShare(Table3[[#This Row],[Symbol]]) -> 5.2 | U18: =StockEBITDA(Table3[[#This Row],[Symbol]]) -> 19.59B | W18: =StockDividendYield(symbol) | X18: Returns the dividend yield.
B19: LMT | C19: =StockName(Table3[[#This Row],[Symbol]]) -> Lockheed Martin Corporation Com | D19: 215.15 | E19: =StockOpen(Table3[[#This Row],[Symbol]]) -> 214.83 | F19: =StockPreviousClose(Table3[[#This Row],[Symbol]]) -> 215.01 | G19: =StockBid(Table3[[#This Row],[Symbol]]) -> 0 | H19: =StockAsk(Table3[[#This Row],[Symbol]]) -> 0 | I19: 0.14 | J19: =StockChangeInPercent(Table3[[#This Row],[Symbol]]) -> +0.07% | K19: 213.87 | L19: 215.74 | M19: 1282903 | N19: 181.91 | O19: 227.91 | P19: =StockPERatio(Table3[[#This Row],[Symbol]]) -> 18.77 | Q19: =StockEPS(Table3[[#This Row],[Symbol]]) -> 11.46 | R19: =StockMarketCapitalization(Table3[[#This Row],[Symbol]]) -> 65.19B | S19: =StockDividendYield(Table3[[#This Row],[Symbol]]) -> 3.09 | T19: =StockDividendPerShare(Table3[[#This Row],[Symbol]]) -> 6.6 | U19: =StockEBITDA(Table3[[#This Row],[Symbol]]) -> 6.70B | W19: =StockEBITDA(symbol) | X19: Returns the earnings before interest, taxes, depreciation, and amortization.
B20: MSFT | C20: =StockName(Table3[[#This Row],[Symbol]]) -> Microsoft Corporation | D20: 51.18 | E20: =StockOpen(Table3[[#This Row],[Symbol]]) -> 52.34 | F20: =StockPreviousClose(Table3[[#This Row],[Symbol]]) -> 52.65 | G20: =StockBid(Table3[[#This Row],[Symbol]]) -> 0 | H20: =StockAsk(Table3[[#This Row],[Symbol]]) -> 0 | I20: -1.47 | J20: =StockChangeInPercent(Table3[[#This Row],[Symbol]]) -> -2.79% | K20: 50.98 | L20: 52.37 | M20: 28895295 | N20: 39.72 | O20: 56.85 | P20: =StockPERatio(Table3[[#This Row],[Symbol]]) -> 36.22 | Q20: =StockEPS(Table3[[#This Row],[Symbol]]) -> 1.41 | R20: =StockMarketCapitalization(Table3[[#This Row],[Symbol]]) -> 404.80B | S20: =StockDividendYield(Table3[[#This Row],[Symbol]]) -> 2.78 | T20: =StockDividendPerShare(Table3[[#This Row],[Symbol]]) -> 1.44 | U20: =StockEBITDA(Table3[[#This Row],[Symbol]]) -> 30.46B | W20: =StockEPS(symbol) | X20: Returns the earnings per share.
B21: MSI | C21: =StockName(Table3[[#This Row],[Symbol]]) -> Motorola Solutions, Inc. Common | D21: 70.78 | E21: =StockOpen(Table3[[#This Row],[Symbol]]) -> 70.02 | F21: =StockPreviousClose(Table3[[#This Row],[Symbol]]) -> 66.75 | G21: =StockBid(Table3[[#This Row],[Symbol]]) -> 0 | H21: =StockAsk(Table3[[#This Row],[Symbol]]) -> 0 | I21: 4.03 | J21: =StockChangeInPercent(Table3[[#This Row],[Symbol]]) -> +6.04% | K21: 69.31 | L21: 72.71 | M21: 4942161 | N21: 56.4 | O21: 72.97 | P21: =StockPERatio(Table3[[#This Row],[Symbol]]) -> 28.3 | Q21: =StockEPS(Table3[[#This Row],[Symbol]]) -> 2.5 | R21: =StockMarketCapitalization(Table3[[#This Row],[Symbol]]) -> 12.50B | S21: =StockDividendYield(Table3[[#This Row],[Symbol]]) -> 2.48 | T21: =StockDividendPerShare(Table3[[#This Row],[Symbol]]) -> 1.64 | U21: =StockEBITDA(Table3[[#This Row],[Symbol]]) -> 1.26B | W21: =StockMarketCapitalization(symbol) | X21: Returns the market capitalization.
B22: NFLX | C22: =StockName(Table3[[#This Row],[Symbol]]) -> Netflix, Inc. | D22: 89.12 | E22: =StockOpen(Table3[[#This Row],[Symbol]]) -> 91.4 | F22: =StockPreviousClose(Table3[[#This Row],[Symbol]]) -> 91.93 | G22: =StockBid(Table3[[#This Row],[Symbol]]) -> 0 | H22: =StockAsk(Table3[[#This Row],[Symbol]]) -> 0 | I22: -2.81 | J22: =StockChangeInPercent(Table3[[#This Row],[Symbol]]) -> -3.06% | K22: 89.05 | L22: 92.49 | M22: 12745180 | N22: 58.46 | O22: 133.27 | P22: =StockPERatio(Table3[[#This Row],[Symbol]]) -> 318.29 | Q22: =StockEPS(Table3[[#This Row],[Symbol]]) -> 0.28 | R22: =StockMarketCapitalization(Table3[[#This Row],[Symbol]]) -> 38.15B | S22: =StockDividendYield(Table3[[#This Row],[Symbol]]) -> 0 | T22: =StockDividendPerShare(Table3[[#This Row],[Symbol]]) -> 0 | U22: =StockEBITDA(Table3[[#This Row],[Symbol]]) -> 368.11M | W22: =StockName(symbol) | X22: Returns the name of the company, limited to 17 characters due to API.
B23: PRU | C23: =StockName(Table3[[#This Row],[Symbol]]) -> Prudential Financial, Inc. Comm | D23: 64.59 | E23: =StockOpen(Table3[[#This Row],[Symbol]]) -> 65.85 | F23: =StockPreviousClose(Table3[[#This Row],[Symbol]]) -> 66.08 | G23: =StockBid(Table3[[#This Row],[Symbol]]) -> 0 | H23: =StockAsk(Table3[[#This Row],[Symbol]]) -> 0 | I23: -1.49 | J23: =StockChangeInPercent(Table3[[#This Row],[Symbol]]) -> -2.25% | K23: 64.03 | L23: 66.09 | M23: 3313699 | N23: 57.19 | O23: 92.6 | P23: =StockPERatio(Table3[[#This Row],[Symbol]]) -> 5.31 | Q23: =StockEPS(Table3[[#This Row],[Symbol]]) -> 12.17 | R23: =StockMarketCapitalization(Table3[[#This Row],[Symbol]]) -> 28.98B | S23: =StockDividendYield(Table3[[#This Row],[Symbol]]) -> 4.28 | T23: =StockDividendPerShare(Table3[[#This Row],[Symbol]]) -> 2.8 | U23: =StockEBITDA(Table3[[#This Row],[Symbol]]) -> 8.81B | W23: =StockOpen(symbol) | X23: Returns the open price.
B24: RHT | C24: =StockName(Table3[[#This Row],[Symbol]]) -> Red Hat, Inc. Common Stock | D24: 65.3 | E24: =StockOpen(Table3[[#This Row],[Symbol]]) -> 66.03 | F24: =StockPreviousClose(Table3[[#This Row],[Symbol]]) -> 66.11 | G24: =StockBid(Table3[[#This Row],[Symbol]]) -> 0 | H24: =StockAsk(Table3[[#This Row],[Symbol]]) -> 0 | I24: -0.81 | J24: =StockChangeInPercent(Table3[[#This Row],[Symbol]]) -> -1.23% | K24: 64.38 | L24: 66.14 | M24: 1290691 | N24: 59.59 | O24: 84.44 | P24: =StockPERatio(Table3[[#This Row],[Symbol]]) -> 63.4 | Q24: =StockEPS(Table3[[#This Row],[Symbol]]) -> 1.03 | R24: =StockMarketCapitalization(Table3[[#This Row],[Symbol]]) -> 11.93B | S24: =StockDividendYield(Table3[[#This Row],[Symbol]]) -> 0 | T24: =StockDividendPerShare(Table3[[#This Row],[Symbol]]) -> 0 | U24: =StockEBITDA(Table3[[#This Row],[Symbol]]) -> 367.78M | W24: =StockPERatio(symbol) | X24: Returns the price to earnings ratio.
B25: S | C25: =StockName(Table3[[#This Row],[Symbol]]) -> Sprint Corporation Common Stock | D25: 2.95 | E25: =StockOpen(Table3[[#This Row],[Symbol]]) -> 3 | F25: =StockPreviousClose(Table3[[#This Row],[Symbol]]) -> 3.02 | G25: =StockBid(Table3[[#This Row],[Symbol]]) -> 0 | H25: =StockAsk(Table3[[#This Row],[Symbol]]) -> 0 | I25: -0.07 | J25: =StockChangeInPercent(Table3[[#This Row],[Symbol]]) -> -2.32% | K25: 2.95 | L25: 3.08 | M25: 9172299 | N25: 2.18 | O25: 5.45 | P25: =StockPERatio(Table3[[#This Row],[Symbol]]) -> 0 | Q25: =StockEPS(Table3[[#This Row],[Symbol]]) -> -0.42 | R25: =StockMarketCapitalization(Table3[[#This Row],[Symbol]]) -> 11.72B | S25: =StockDividendYield(Table3[[#This Row],[Symbol]]) -> 0 | T25: =StockDividendPerShare(Table3[[#This Row],[Symbol]]) -> 0 | U25: =StockEBITDA(Table3[[#This Row],[Symbol]]) -> 7.86B | W25: =StockPreviousClose(symbol) | X25: Returns the closing price on the previous trading day.
B26: SRS | C26: =StockName(Table3[[#This Row],[Symbol]]) -> ProShares UltraShort Real Estat | D26: 49.7 | E26: =StockOpen(Table3[[#This Row],[Symbol]]) -> 49.56 | F26: =StockPreviousClose(Table3[[#This Row],[Symbol]]) -> 49.37 | G26: =StockBid(Table3[[#This Row],[Symbol]]) -> 0 | H26: =StockAsk(Table3[[#This Row],[Symbol]]) -> 0 | I26: 0.33 | J26: =StockChangeInPercent(Table3[[#This Row],[Symbol]]) -> +0.67% | K26: 48.68 | L26: 49.78 | M26: 114218 | N26: 43.32 | O26: 58.29 | P26: =StockPERatio(Table3[[#This Row],[Symbol]]) -> 0 | Q26: =StockEPS(Table3[[#This Row],[Symbol]]) -> 0 | R26: =StockMarketCapitalization(Table3[[#This Row],[Symbol]]) ->  | S26: =StockDividendYield(Table3[[#This Row],[Symbol]]) -> 0 | T26: =StockDividendPerShare(Table3[[#This Row],[Symbol]]) -> 0 | U26: =StockEBITDA(Table3[[#This Row],[Symbol]]) ->  | W26: =StockQuote(symbol) | X26: Returns delayed stock quote.
B27: VB | C27: =StockName(Table3[[#This Row],[Symbol]]) -> Vanguard Small-Cap ETF - DNQ | D27: 100.88 | E27: =StockOpen(Table3[[#This Row],[Symbol]]) -> 101.52 | F27: =StockPreviousClose(Table3[[#This Row],[Symbol]]) -> 101.73 | G27: =StockBid(Table3[[#This Row],[Symbol]]) -> 0 | H27: =StockAsk(Table3[[#This Row],[Symbol]]) -> 0 | I27: -0.85 | J27: =StockChangeInPercent(Table3[[#This Row],[Symbol]]) -> -0.84% | K27: 100.83 | L27: 101.83 | M27: 1042074 | N27: 90.03 | O27: 125.51 | P27: =StockPERatio(Table3[[#This Row],[Symbol]]) -> 0 | Q27: =StockEPS(Table3[[#This Row],[Symbol]]) -> 0 | R27: =StockMarketCapitalization(Table3[[#This Row],[Symbol]]) ->  | S27: =StockDividendYield(Table3[[#This Row],[Symbol]]) -> 0 | T27: =StockDividendPerShare(Table3[[#This Row],[Symbol]]) -> 0 | U27: =StockEBITDA(Table3[[#This Row],[Symbol]]) ->  | W27: =StockVolume(symbol) | X27: Returns the number of shares traded for the day.
B28: VWO | C28: =StockName(Table3[[#This Row],[Symbol]]) -> Vanguard FTSE Emerging Markets | D28: 30.76 | E28: =StockOpen(Table3[[#This Row],[Symbol]]) -> 31.12 | F28: =StockPreviousClose(Table3[[#This Row],[Symbol]]) -> 31.44 | G28: =StockBid(Table3[[#This Row],[Symbol]]) -> 0 | H28: =StockAsk(Table3[[#This Row],[Symbol]]) -> 0 | I28: -0.68 | J28: =StockChangeInPercent(Table3[[#This Row],[Symbol]]) -> -2.16% | K28: 30.76 | L28: 31.14 | M28: 15057247 | N28: 27.98 | O28: 45.08 | P28: =StockPERatio(Table3[[#This Row],[Symbol]]) -> 0 | Q28: =StockEPS(Table3[[#This Row],[Symbol]]) -> 3.79 | R28: =StockMarketCapitalization(Table3[[#This Row],[Symbol]]) ->  | S28: =StockDividendYield(Table3[[#This Row],[Symbol]]) -> 4.8 | T28: =StockDividendPerShare(Table3[[#This Row],[Symbol]]) -> 1.54 | U28: =StockEBITDA(Table3[[#This Row],[Symbol]]) ->  | W28: =StockYearHigh(symbol) | X28: Returns the 52-week high.
B29: YHOO | C29: =StockName(Table3[[#This Row],[Symbol]]) -> Yahoo! Inc. | D29: 30.67 | E29: =StockOpen(Table3[[#This Row],[Symbol]]) -> 31.2 | F29: =StockPreviousClose(Table3[[#This Row],[Symbol]]) -> 31.17 | G29: =StockBid(Table3[[#This Row],[Symbol]]) -> 0 | H29: =StockAsk(Table3[[#This Row],[Symbol]]) -> 0 | I29: -0.5 | J29: =StockChangeInPercent(Table3[[#This Row],[Symbol]]) -> -1.60% | K29: 30.5 | L29: 31.38 | M29: 17072345 | N29: 26.15 | O29: 46.17 | P29: =StockPERatio(Table3[[#This Row],[Symbol]]) -> 0 | Q29: =StockEPS(Table3[[#This Row],[Symbol]]) -> -4.64 | R29: =StockMarketCapitalization(Table3[[#This Row],[Symbol]]) -> 28.93B | S29: =StockDividendYield(Table3[[#This Row],[Symbol]]) -> 0 | T29: =StockDividendPerShare(Table3[[#This Row],[Symbol]]) -> 0 | U29: =StockEBITDA(Table3[[#This Row],[Symbol]]) -> 474.68M | W29: =StockYearLow(symbol) | X29: Returns the 52-week low.
W31: Available Macros
W32: RefreshStockQuote | X32: Refreshes stock quotes on all sheets. Shortcut key: F9.
W33: AutoRefresh | X33: Enables auto refresh stock quotes at the first second of every minute.
W34: StopAutoRefresh | X34: Disables auto refresh stock quotes.

Sheet Boot (hidden)
A1: Boot Stock Symbols
A2: ABT
A3: MSI
A4: S
A5: DAL
A6: ALL
A7: PFE
A8: IBM
A9: VWO
A10: BA
A11: YHOO
A12: FB
A13: PRU
A14: GOOG
A15: AMZN
A16: NFLX
A17: ^DJI
A18: WFC
A19: RHT
A20: SRS
A21: LMT
A22: VB
A23: WMT
A24: JPM
A25: CCE
A26: AAPL
A27: MSFT

Sheet Indices
B4: Inidices Reference
B8: Index | C8: Symbol
B9: AEX Amsterdam (Netherlands) | C9: ^AEX
B10: All Ordinaries (Australia) | C10: ^AORD
B11: Athens Composite (Greece) | C11: GD.AT
B12: ATX (Austria) | C12: ^ATX
B13: CAC 40 (France) | C13: ^FCHI
B14: CBOE Gold | C14: ^GOX
B15: CBOE Gold Bugs | C15: ^HUI
B16: Colombo All Shares (Sri Lanka) | C16: ^CSE
B17: DAX (Germany) | C17: ^GDAXI
B18: Dow Jones Industrial Average | C18: ^DJI
B19: Euronext BEL-20 (Belgium) | C19: ^BFX
B20: FTSE 100 | C20: ^FTSE
B21: FTSE MIB (Italy) | C21: FTSEMIB.MI
B22: Hang Seng (Hong Kong) | C22: ^HSI
B23: Interactive Week Internet | C23: ^IIX
B24: IPC (Mexico) | C24: ^MXX
B25: ISEQ 20 Price (Ireland) | C25: ^IETP
B26: Jakarta Composite (Indonesia) | C26: ^JKSE
B27: KOSPI Composite (South Korea) | C27: ^KS11
B28: MERVAL (Argentina) | C28: ^MERV
B29: Morgan Stanley Consumer | C29: ^CMR
B30: Morgan Stanley Cyclical | C30: ^CYC
B31: MSCI US REIT | C31: ^RMZ
B32: NASDAQ Bank | C32: ^BANK
B33: NASDAQ Biotechnology | C33: ^NBI
B34: NASDAQ Composite | C34: ^IXIC
B35: NASDAQ Computer | C35: ^IXCO
B36: NASDAQ Financial 100 | C36: ^IXF
B37: NASDAQ Industrial | C37: ^INDS
B38: NASDAQ Insurance | C38: ^INSR
B39: NASDAQ SIG Oil Exploration and Production | C39: ^EPX
B40: NASDAQ Telecommunications | C40: ^IXTC
B41: NASDAQ Transportation | C41: ^TRAN
B42: NASDAQ-100 | C42: ^NDX
B43: Nikkei 225 (Japan) | C43: ^N225
B44: NYSE AMEX Airline | C44: ^XAL
B45: NYSE AMEX Biotechnology | C45: ^BTK
B46: NYSE AMEX Composite | C46: ^XAX
B47: NYSE AMEX Computer Technology | C47: ^XCI
B48: NYSE AMEX Natural Gas | C48: ^XNG
B49: NYSE AMEX Oil | C49: ^XOI
B50: NYSE AMEX Pharmaceutical | C50: ^DRG
B51: NYSE AMEX Securities Broker/Dealer | C51: ^XBD
B52: NYSE ARCA Institutional | C52: ^XII
B53: NYSE ARCA Major Market | C53: ^XMI
B54: NYSE ARCA Networking | C54: ^NWX
B55: NYSE Composite | C55: ^NYA
B56: NYSE TMT | C56: ^NYY
B57: NYSE US 100 | C57: ^NY
B58: NZSE 50 (New Zealand) | C58: ^NZ50
B59: PHLX Gold/Silver Sector | C59: ^XAU
B60: PHLX Housing Sector | C60: ^HGX
B61: PHLX Oil Service Sector | C61: ^OSX
B62: PHLX Semiconductor | C62: ^SOX
B63: PHLX Utility Sector | C63: ^UTY
B64: RTSI (Russia) | C64: RTS.RS
B65: Russell 1000 | C65: ^RUI
B66: Russell 2000 Index | C66: ^RUT
B67: Russell 3000 | C67: ^RUA
B68: S&P 100 | C68: ^OEX
B69: S&P 500 Index | C69: ^GSPC
B70: S&P Mid-Cap 400 | C70: ^MID
B71: S&P Small-Cap 600 | C71: ^SP600
B72: S&P TSX Composite (Canada) | C72: ^GSPTSE
B73: Straits Times (Singapore) | C73: ^STI
B74: Swiss Market (Switzerland) | C74: ^SSMI
B75: Taiwan Weighted | C75: ^TWII
B76: Tel Aviv 100 (Israel) | C76: ^TA100
B77: Wilshire 5000 Total Market | C77: ^W5000
B78: Wilshire US Large Cap Growth | C78: ^W5KLCG
B79: Wilshire US Large Cap Value | C79: ^W5KLCV
B80: Wilshire US Mid Cap Growth | C80: ^W5KMCG
B81: Wilshire US Mid Cap Value | C81: ^W5KMCV
B82: Wilshire US Real Estate Securities | C82: ^WILRESI
B83: Wilshire US REIT | C83: ^WILREIT
B84: Wilshire US Small Cap Growth | C84: ^W5KSCG
B85: Wilshire US Small Cap Value | C85: ^W5KSCV
